Cogmind - Beta 15 @@@ ROGUE MODE // 2025.06.22 @ 14:31:04 Player: Cynic Result: Destroyed by G-47 Trooper with Particle Gun Performance ------------- Evolutions (2) 1000 Regions Visited (3) 600 Robots Destroyed (56) 280 Value Destroyed (1570) 1570 Prototype IDs (1) 20 Alien Tech Used (0) 0 Bonus (25) 25 TOTAL SCORE: 3495 Bonus ------- High Alert Combat Kills 25 Cogmind --------- Core Integrity 0/550 Matter 300/300 Energy 148/160 System Corruption 0% Temperature Cool (9) Movement Core (100) Ox1 Location -8/Materials Parts ------- > --- POWER (1) -------- Light Nuclear Core > --- PROPULSION (3) --- (None) > --- UTILITY (3) ------ Advanced Targeting Computer > --- WEAPON (4) ------- (None) > --- INVENTORY (5) ---- Improved Heat Sink Large Matter Pod (150) Structural Scanner Peak State ------------ > --- POWER ------------ Nuclear Core > --- PROPULSION ------- Armored Treads Armored Treads Armored Treads > --- UTILITY ---------- Small Storage Unit Advanced Targeting Computer Light Armor Plating > --- WEAPON ----------- High-powered Shotgun High-powered Shotgun High-powered Shotgun High-powered Shotgun > --- INVENTORY -------- Light Ion Engine Light Nuclear Core Improved Heat Sink Large Matter Pod Structural Scanner Tractor Beam Improved Assault Rifle [Rating: 30] Favorites ----------- Power Light Nuclear Core Engine Ion Engine Power Core Light Nuclear Core Propulsion Light Treads Treads Light Treads Utility Small Storage Unit Device Structural Scanner Storage Small Storage Unit Processor Advanced Targeting Computer Protection Light Armor Plating Weapon Improved Assault Rifle Energy Gun EM Pulse Gun Ballistic Gun Improved Assault Rifle Build | -11 -10 -9 -8 ------- Run | Yrd Mat Mat Mat Slots Evolved 4 | . . 2 2 Power . | . . . . Propulsion 1 | . . . 1 Utility 1 | . . . 1 Weapon 2 | . . 2 . Parts Attached 33 | 6 4 9 14 Power 4 | 1 1 . 2 Engine 2 | 1 . . 1 Core 2 | . 1 . 1 Reactor . | . . . . Propulsion 8 | 2 . 2 4 Treads 8 | 2 . 2 4 Leg . | . . . . Wheel . | . . . . Hover . | . . . . Flight . | . . . . Utility 7 | 1 2 1 3 Device 2 | . 1 . 1 Storage 3 | 1 1 . 1 Processor 1 | . . . 1 Hackware . | . . . . Protection 1 | . . 1 . Artifact . | . . . . Weapon 14 | 2 1 6 5 Energy Gun 3 | 1 1 1 . Energy Cannon . | . . . . Ballistic Gun 11 | 1 . 5 5 Ballistic Cannon . | . . . . Launcher . | . . . . Special Weapon . | . . . . Impact Weapon . | . . . . Slashing Weapon . | . . . . Piercing Weapon . | . . . . Special Melee Weapon . | . . . . Unidentified Prototypes 1 | . . 1 . Parts Lost 18 | . 2 1 15 Power 3 | . 1 . 2 Propulsion 3 | . . . 3 Utility 3 | . . . 3 Weapon 9 | . 1 1 7 Highest Loss Streak 15 | . 2 1 15 To Critical Strikes . | . . . . Average Backups 5 | 2 4 5 6 Power 1 | . 1 1 1 Propulsion . | . . . . Utility 2 | . 1 2 3 Weapon 1 | 1 1 1 1 Tool/Special . | . . . . Unused Backups 3 | . . 1 2 Power . | . . . . Propulsion . | . . . . Utility 2 | . . . 2 Weapon 1 | . . 1 . Tool/Special . | . . . . Average Slot Usage (%) 95 | . 98 97 93 Engine 2 | . 12 . . Core 7 | . 1 11 7 Treads 24 | . 28 22 25 Device 2 | . 8 . 1 Storage 13 | . 18 16 8 Processor 3 | . . . 7 Protection 5 | . . 5 7 Energy Gun 5 | . 15 6 . Ballistic Gun 29 | . 12 34 32 Peak Build Rating 30 | 6 9 18 30 Average Rating 17 | 3 7 16 24 On Entrance 8 | . 6 9 17 Naked Turns . | . . . . Heaviest Build 32 | 13 17 25 32 Greatest Support 60 | 40 40 40 60 Greatest Overweight (x) 8 | 1 . . 8 Average Overweight (x) . | . . . . Largest Inventory Capacity 10 | 8 8 8 10 Average Capacity 8 | 7 8 8 8 Most Carried 9 | 7 6 8 9 Average Carried 5 | 3 4 5 6 Final Capacity 8 | 8 8 8 5 Final Carried 6 | 2 4 6 3 Class Distribution -------------------- 43% | Gunner 26% | Mutant 25% | Scavenger-Tank 4% | Scavenger-Gunner Dominant Class ---------------- Mutant | -10/Materials Scavenger-Tank | -9/Materials Gunner | -8/Materials Resources | -11 -10 -9 -8 ----------- Run | Yrd Mat Mat Mat Matter Collected 1541 | 237 179 317 808 Remotely 350 | . . . 350 Salvage Created 2059 | . 409 741 909 Parts 97 | . 18 37 42 Haulers Intercepted 1 | . . . 1 Recyclers Shooed 3 | . 1 . 2 Parts Field Recycled . | . . . . Retrieved Matter . | . . . . Parts Self-Destructed . | . . . . Prevented . | . . . . Kills | -11 -10 -9 -8 ------- Run | Yrd Mat Mat Mat Combat Hostiles Destroyed 43 | . 8 16 19 Guns 43 | . 8 16 19 Classes Destroyed 12 | . 2 5 5 Worker 1 | . . 1 . Builder 2 | . . . 2 Tunneler 1 | . . 1 . Hauler 1 | . . . 1 Recycler 3 | . . . 3 Operator 1 | . . . 1 Watcher 4 | . 2 2 . Swarmer 11 | . . 3 8 Grunt 26 | . 8 9 9 Brawler 1 | . . 1 . Sentry 3 | . . 3 . Specialist 2 | . . . 2 Best Kill Streak 13 | . 7 9 13 Combat Bots Only 9 | . 5 9 8 Max Kills in Single Turn 4 | . 1 1 4 Gunslinging 3 | . . . 3 Exploded . | . . . . Melee . | . . . . Uniques/NPCs Destroyed . | . . . . Combat | -11 -10 -9 -8 -------- Run | Yrd Mat Mat Mat Hostile Shots Fired 327 | . 23 42 262 Missed 101 | . 3 13 85 Hits 226 | . 20 29 177 Projectile 226 | . 20 29 177 Critical Strikes 11 | . . 1 10 Damage Taken 3612 | . 367 397 2848 Core 673 | . 62 47 564 Absorbed by Shields . | . . . . Core Remaining (%) 87 | 100 75 88 . Volleys Fired 95 | . 24 27 44 Largest 4 | . 2 4 4 Hottest 163 | . 60 163 100 Shots Fired 305 | . 48 108 149 Gun 305 | . 48 108 149 Cannon . | . . . . Launcher . | . . . . Special . | . . . . Kinetic 278 | . 24 105 149 Thermal 2 | . . 2 . Explosive . | . . . . Electromagnetic 25 | . 24 1 . Robot Hit Streak 20 | . 11 16 20 Robot Miss Streak 7 | . 3 4 7 Penetration Max . | . . . . Secondary Targets 17 | . 1 6 10 Max Gunslinging Chain 3 | . 1 1 3 Shots Hit Robots 206 | . 35 69 102 Core Hits 94 | . 16 29 49 Critical Kills . | . . . . Critical Parts Destroyed . | . . . . Critical Strikes 2 | . 2 . . Corrupt 2 | . 2 . . Melee Attacks . | . . . . Impact . | . . . . Slashing . | . . . . Piercing . | . . . . Sneak Attacks . | . . . . Combat Hostiles . | . . . . Follow-up Attacks . | . . . . Damage Inflicted 3304 | . 427 1118 1759 Guns 3233 | . 418 1118 1697 Cannons . | . . . . Explosions 62 | . . . 62 Melee . | . . . . Ramming 9 | . 9 . . Kinetic 2946 | . 153 1096 1697 Thermal . | . . . . Explosive . | . . . . Electromagnetic 349 | . 265 22 62 Impact . | . . . . Slashing . | . . . . Piercing . | . . . . Highest Corruption 1 | . 1 . . Average Corruption 1 | . 1 . . Corruption Purged . | . . . . Corruption Blocked . | . . . . Overload Shots . | . . . . Overflow Damage . | . . . . Projectiles . | . . . . Explosions . | . . . . Melee . | . . . . Knockbacks . | . . . . Impact . | . . . . Kinetic . | . . . . Secondary . | . . . . Self-Inflicted Damage . | . . . . Shots . | . . . . Rammed 2 | . 1 . 1 Targets Rammed 2 | . 1 . 1 Kicked . | . . . . Crushed . | . . . . Highest Temperature 345 | . 76 275 345 Average Temperature 88 | . 32 98 106 Received Heat Transfer 1116 | . 123 156 837 Effects 5 | . . 2 3 Interference 5 | . . 2 3 Siege Activations . | . . . . Martial Activations . | . . . . Shielding Activations . | . . . . Robots Disrupted . | . . . . Combat Hostiles . | . . . . Robots Corrupted . | . . . . Combat Hostiles . | . . . . Parts Fried . | . . . . Impact Corruptions . | . . . . Robots Melted . | . . . . Combat Hostiles . | . . . . Parts Melted . | . . . . Heat Transferred . | . . . . Parts Sabotaged . | . . . . Parts Stolen . | . . . . Parts Stripped . | . . . . Power Chain Reactions . | . . . . Alert | -11 -10 -9 -8 ------- Run | Yrd Mat Mat Mat Maximum Alert Level 2 | . . 1 2 Low Security (%) 66 | 100 100 53 59 Level 1 32 | . . 46 38 Level 2 1 | . . . 2 Level 3 . | . . . . Level 4 . | . . . . Level 5 . | . . . . High Security . | . . . . Max Security . | . . . . Peak Influence 410 | . 124 316 410 Initial 109 | . . 31 109 Average 146 | . 67 157 189 Influence Increases 1227 | . 194 420 613 Destroy 0b10 Robot/C 860 | . 160 320 380 Destroy 0b10 Robot/NC 65 | . 10 20 35 Destroy Leader 150 | . 24 64 62 Disable Machine 45 | . . . 45 Destroy Structure 2 | . . 1 1 Lose Combat Pursuer 105 | . . 15 90 Influence Decreases 893 | . 120 234 539 Entered New Map 194 | . . 43 151 Time Decay 529 | . 100 191 238 Lost Part 170 | . 20 . 150 Squads Dispatched 8 | . 1 . 7 Investigation 1 | . . . 1 Extermination . | . . . . Reinforcement 5 | . 1 . 4 Assault . | . . . . Garrison 2 | . . . 2 Intercept . | . . . . Searches Triggered . | . . . . Construction Impeded 1 | . . . 1 Haulers Reinforced . | . . . . Active Scanning Responses . | . . . . Cargo Convoy Interrupts . | . . . . Stealth | -11 -10 -9 -8 --------- Run | Yrd Mat Mat Mat Distress Signals 8 | . 2 . 6 Communications Jammed . | . . . . Distress Signals . | . . . . Times Spotted 70 | . 12 20 38 Peak Tracking Total 12 | . 4 8 12 Tactical Retreats 4 | . . 1 3 Traps | -11 -10 -9 -8 ------- Run | Yrd Mat Mat Mat Traps Triggered 2 | . 1 . 1 Indirectly . | . . . . Trap Hack Attempts . | . . . . Triggered . | . . . . Disarmed . | . . . . Reprogrammed . | . . . . Reused . | . . . . Traps Extracted . | . . . . Installed . | . . . . Triggered . | . . . . Machines | -11 -10 -9 -8 ---------- Run | Yrd Mat Mat Mat Machines Disabled 3 | . . . 3 Max in Single Turn 2 | . . . 2 Machines Repaired . | . . . . Machines Dismantled . | . . . . Machines Sabotaged . | . . . . Overloaded Fab Kills . | . . . . Hacking | -11 -10 -9 -8 --------- Run | Yrd Mat Mat Mat Machines Accessed . | . . . . Terminals . | . . . . Fabricators . | . . . . Repair Stations . | . . . . Recycling Units . | . . . . Scanalyzers . | . . . . Garrison Access . | . . . . Total Hacks . | . . . . Successful . | . . . . Failed . | . . . . Catastrophic . | . . . . Database Lockouts . | . . . . Manual . | . . . . Terminals . | . . . . Fabricators . | . . . . Repair Stations . | . . . . Recycling Units . | . . . . Scanalyzers . | . . . . Garrison Access . | . . . . Terminal Hacks . | . . . . Fabricator Hacks . | . . . . Repair Station Hacks . | . . . . Recycling Unit Hacks . | . . . . Scanalyzer . | . . . . Garrison Access Hacks . | . . . . Unauthorized Hacks . | . . . . Terminals . | . . . . Fabricators . | . . . . Repair Stations . | . . . . Recycling Units . | . . . . Scanalyzers . | . . . . Garrison Access . | . . . . Data Cores Recovered 1 | . . . 1 Used . | . . . . Hacking Detections . | . . . . Full Trace Events . | . . . . Feedback Events . | . . . . Feedback Blocked . | . . . . Robot Schematics Acquired . | . . . . Robots Built . | . . . . Authchips . | . . . . Time . | . . . . Total Robot Build Rating . | . . . . Part Schematics Acquired . | . . . . Parts Built . | . . . . Authchips . | . . . . Time . | . . . . Total Part Build Rating . | . . . . Parts Repaired . | . . . . Time . | . . . . Parts Recycled . | . . . . Recycled Matter . | . . . . Retrieved Matter . | . . . . Retrieved Components . | . . . . Parts Scanalyzed . | . . . . Part Schematics Acquired . | . . . . Parts Damaged . | . . . . Bothacking | -11 -10 -9 -8 ------------ Run | Yrd Mat Mat Mat Used RIF Installer . | . . . . Robots Hacked . | . . . . Non-combat . | . . . . Combat . | . . . . Robot Hacks Applied . | . . . . Relay Couplers Released . | . . . . Fabnet Peak Effective % . | . . . . Robots Rewired . | . . . . Allies Hacked . | . . . . Hacks Repelled . | . . . . Allies | -11 -10 -9 -8 -------- Run | Yrd Mat Mat Mat Total Allies . | . . . . Largest Group . | . . . . Highest-Rated Group . | . . . . Highest-Rated Ally . | . . . . Total Orders . | . . . . Ally Attacks . | . . . . Total Damage . | . . . . Kills . | . . . . Allies Corrupted . | . . . . Allies Melted . | . . . . Intel | -11 -10 -9 -8 ------- Run | Yrd Mat Mat Mat Active Infowar (turns) 147 | . 147 . . Structural 147 | . 147 . . Robot Analysis Total . | . . . . Derelict Logs Recovered . | . . . . Drone Launches . | . . . . Drone Recoveries . | . . . . Exploration | -11 -10 -9 -8 ------------- Run | Yrd Mat Mat Mat Turns Passed 1339 | 56 250 521 512 Spaces Moved 589 | 42 108 249 190 Core 30 | 25 . . 5 Treads 559 | 17 108 249 185 Legs . | . . . . Wheels . | . . . . Hover . | . . . . Flight . | . . . . Fastest Speed 50 | 50 160 160 100 Average Speed 159 | 102 160 160 171 Slowest Speed 450 | 160 160 160 450 Overloaded Moves . | . . . . Propulsion Burnouts . | . . . . Robots Hopped . | . . . . Potential Cave-ins . | . . . . Cave-ins Triggered . | . . . . Exploration Rate (%) 21 | 3 28 28 25 Regions Visited 3 Branch Regions . Pre-discovered Areas . | . . . . Known Exits Taken . | . . . . Unknown Exits Taken 3 | 1 1 1 . Scrap Searched . | . . . . Spaces Dug . | . . . . Terrain Destroyed . | . . . . Melee . | . . . . Projectile . | . . . . AOE . | . . . . Terrain Rammed . | . . . . Walls Destroyed . | . . . . Machines Disabled . | . . . . Actions | -11 -10 -9 -8 --------- Run | Yrd Mat Mat Mat Total 776 | 54 141 305 276 Wait . | . . . . Move 586 | 41 107 248 190 Hop . | . . . . Pick Up 36 | 7 5 12 12 Fast Attach 2 | 1 . . 1 Attach 27 | 5 3 5 14 Detach . | . . . . Swap 13 | . 1 6 6 Drop 15 | . . 7 8 Fire 95 | . 24 27 44 Melee . | . . . . Ram . | . . . . Kick . | . . . . Crush 2 | . 1 . 1 Escape Stasis . | . . . . Rewire . | . . . . Trap . | . . . . Miscellaneous . | . . . . Route ------- -11/Scrapyard -10/Materials -9/Materials -8/Materials History --------- Turn | Location | Event 31 | -11/Scrapyard | Discovered new exit (range 15) 57 | -11/Scrapyard | Entered Materials 58 | -10/Materials | Met a group of wandering Federalists 167 | -10/Materials | Lost 4 allies 275 | -10/Materials | Discovered new exit (range 15) 305 | -10/Materials | Build established: Mutant 307 | -10/Materials | Entered another Materials area 307 | -9/Materials | Evolved 2 slots: Weapon x2 568 | -9/Materials | Destroyed 9 combat bots 787 | -9/Materials | Discovered new exit (range 5) 828 | -9/Materials | Entered another Materials area 828 | -8/Materials | Evolved 2 slots: Propulsion x1, Utility x1 850 | -8/Materials | Build established: Scavenger-Tank 1167 | -8/Materials | Destroyed 8 combat bots 1167 | -8/Materials | Garrison activated, responded to threat 1222 | -8/Materials | Build established: Gunner 1315 | -8/Materials | Core integrity fell below 50% 1332 | -8/Materials | Core integrity fell below 20% 1340 | -8/Materials | Destroyed by G-47 Trooper with Particle Gun Last Messages --------------- Critical hit (Burn: +37). U-05 Engineer lays Concrete. Lgt. Ion Engine destroyed. U-05 Engineer lays Concrete. Hpw. Shotgun destroyed. U-05 Engineer lays Concrete. G-47 Trooper destroyed. U-05 Engineer lays Concrete. Acquired 2 matter. Critical hit (Burn: +37). U-05 Engineer lays Concrete. Penetrated by Slug. U-05 Engineer lays Concrete. Acquired 6 matter. Acquired 4 matter. M-13 Machinist repairs H-61 Shepherd. Hpw. Shotgun destroyed. Critical hit (Burn: +37). Med. Storage Unit destroyed. Tractor Beam destroyed. Map ----- +----------------------------------------------------+ | ?????????????????????????????????????????????????? | | ?????????????????????????????????????????????????? | | ?????????????????????????????????????????????????? | | ?????????????????????????????????????????????????? | | ?????????????????????????????????????????????????? | | ?????????????????????????????????????????????????? | | ??????????????????????????????#######+#??????????? | | ?????????????????????????????? /?????????? | | ?????????????????????????????? #??????????? | | ??????????? ????????????????? #??????????? | | ?????????? ??????????????? #??????????? | | ????????? "############# #??????????? | | ????????? ]]] #??????????? | | ????????? * !] #??????????? | | ????????? !]]% Y #??????????? | | ????????? % ! #??????????? | | ??????????## ![ #??????????? | | ???????????# ""##=* = #??????????? | | ???????????# """ ??#T*[= #??????????? | | ???????????# """ ???## [=! #??????????? | | ???????????????""" ???##[Hm #??????????? | | ??????????????? ????#[g [[! u #??????????? | | ?????????????? ??????# gg*! #??????????? | | ?????????????? """ ?????##*=g!! #??????????? | | ????????????? """??????#;=%%####### #??????????? | | ????????????????????????#@*#/ / ?? #??????????? | | ????????????????????????#;m#?? #??#??????????? | | ????????????????????????##g#????* +?????????????? | | ?????????????????? ???#*#?????? #?????????????? | | ?????????????????" ???#%#?????????????????????? | | ????????????????"" ???#=#?????????????????????? | | ????????????????? #??#=#?????????????????????? | | ????????????????? #??#*#?????????????????????? | | ????????????????"" #??#!#?????????????????????? | | ???????????????""" ####/###???????????????????? | | ????????????????"" # #???????????????????? | | ????????????????? # #???????????????????? | | ?????????????????? # #???????????????????? | | ??????????????????# + """ +???????????????????? | | ??????????????????# # """ #???????????????????? | | ??????????????????# # """ #???????????????????? | | ??????????????????# ##+#####???????????????????? | | ??????????????????# #???????????????????????? | | ??????????????????# #???????????????????????? | | ??????????????????# #???????????????????????? | | ?????????######???# ##+#???????????????????????? | | ?????????# ??# # ??????????????????????? | | ??????????""" ?# # ] ?????????????????????? | | ??????????""" # # T????????????????????? | | ?????????#""" # #""" " ???????????????????? | +----------------------------------------------------+ Best States ------------- Heat Dissipation 31 Energy Generation 14 Energy Capacity 250 Matter Stores 417 Matter Capacity 450 Sight Range 16 Terrain Scan Density 10 Armor Coverage 150 Evasion (%) 50 Targeting Accuracy 8 Recoil Reduction 3 Item Schematics ----------------- None Robot Schematics ------------------ None Fabricated ------------ Nothing Repaired ---------- Nothing Alien Tech Used ----------------- None Achievements -------------- Gunslinger Troublemaker Challenges ------------ None Game ------ Seed VampiricSensorSubcomponent Manual? 0 Play Time 00:20:10 Cumulative 3.0 hours Start 2025.06.22 @ 14:12:47 End 2025.06.22 @ 14:31:04 Sessions 1 Manual Loads 0 Difficulty Rogue Special Mode None Game No. 7 Rogue 7 Adventurer 0 Explorer 0 Win Type - Total 0 Types 0/0/0/0/0/0/0/0/0/0 Lore% 2 Gallery% 7 Achievement% 7 Wizard Run 0 Options --------- Layout 0 ASCII 0 Keyboard 0 Movement Mouse Keybinds 0 Fullscreen 1 Font 36/Smallcaps Map View 76x50 Zoom Use 0% Tactical HUD 0 Map Filters NONE Filters NONE Steam 1 RUN: d0c36436-aeee-4000-9ce6-50259d4c179a